bitfinex/quotes_ETHUSD_20250804
["timestamp","ask_amount","ask_price","bid_price","bid_amount"]
[1754284231470,1.4553,3539.4,3539.3,0.1436]
[1754284232436,1.60093,3539.4,3539.3,0.002]
[1754284232638,1.74253,3539.4,3539.3,0.002]
[1754284241016,1.74253,3539.4,3538.9,0.002]
[1754284241017,0.1,3539.0,3538.9,0.002]
[1754284241175,4.393,3539.0,3538.9,0.002]
[1754284241508,5.93661829,3539.0,3538.9,0.002]
[1754284242286,6.34501829,3539.0,3538.9,0.002]
[1754284248230,9.17067525,3539.0,3538.9,0.002]
[1754284249278,12.17067525,3539.0,3538.9,0.002]
[1754284249735,42.17067525,3539.0,3538.9,0.002]
[1754284251731,42.38676425,3539.0,3538.9,0.002]
[1754284252420,42.52836425,3539.0,3538.9,0.002]
[1754284253400,42.52936425,3539.0,3538.9,0.002]
[1754284254834,45.71136425,3539.0,3538.9,0.002]
[1754284255023,50.00536425,3539.0,3538.9,0.002]
[1754284258458,71.06678248,3539.0,3538.9,0.002]
[1754284258632,66.77278248,3539.0,3538.9,0.002]
[1754284258832,71.06678248,3539.0,3538.9,0.002]
[1754284261057,41.06678248,3539.0,3538.9,0.002]
[1754284261437,17.17970729,3539.0,3538.9,0.002]
[1754284262664,15.01051829,3539.0,3538.9,0.002]
[1754284262841,18.8056,3539.0,3538.9,0.002]
[1754284263244,0.1,3538.8,3538.7,0.328]
[1754284263570,4.5356,3538.8,3538.7,0.328]
[1754284264072,0.55,3538.7,3538.5,0.33]
[1754284264371,4.4356,3538.6,3538.5,0.33]
[1754284265546,0.2416,3538.6,3538.5,0.33]
[1754284265877,4.5356,3538.6,3538.5,0.33]
[1754284266572,0.2416,3538.6,3538.5,0.33]
[1754284266778,4.5356,3538.6,3538.5,0.33]
[1754284267358,4.5356,3538.6,3538.5,0.002]
[1754284268120,4.5356,3538.6,3538.5,0.33]
[1754284268466,0.2416,3538.6,3538.5,0.002]
[1754284268651,4.5356,3538.6,3538.5,0.33]
[1754284271153,4.5346,3538.6,3538.5,0.33]
[1754284271347,0.2416,3538.6,3538.5,0.33]
[1754284271590,4.5346,3538.6,3538.5,0.002]
[1754284271936,0.2416,3538.6,3538.5,0.33]
[1754284272254,4.5346,3538.6,3538.5,0.33]
[1754284273184,4.5346,3538.6,3538.5,0.002]
[1754284274880,0.2416,3538.6,3538.5,0.002]
[1754284275103,4.5346,3538.6,3538.5,0.33]
[1754284275856,4.5346,3538.6,3538.5,0.002]
[1754284279733,0.1,3538.6,3538.5,2.82805623]
[1754284280025,4.393,3538.6,3538.5,6.86327667]
[1754284280202,4.293,3538.6,3538.5,6.86327667]
[1754284280526,4.393,3538.6,3538.5,6.86327667]
[1754284282329,4.293,3538.6,3538.5,6.86327667]
[1754284282536,0.1,3538.8,3538.7,2.82589651]
[1754284282733,4.293,3538.8,3538.7,7.09501383]
[1754284283034,4.393,3538.8,3538.7,7.56461383]
[1754284283209,4.393,3538.8,3538.7,4.73871732]
[1754284283538,4.393,3538.8,3538.7,0.1416]
[1754284283701,0.1,3538.6,3538.5,0.002]
[1754284284098,1.0494,3538.6,3538.5,0.002]
[1754284284921,0.5759,3538.6,3538.5,0.002]
[1754284285120,1.0494,3538.6,3538.5,0.002]
[1754284285398,0.524,3538.6,3538.5,0.002]
[1754284285600,4.392,3538.6,3538.5,6.29765623]
[1754284285820,4.392,3538.6,3538.5,4.05618055]
[1754284286031,4.392,3538.6,3538.5,3.1436]
[1754284286836,4.392,3538.6,3538.5,5.96965623]
[1754284288554,4.392,3538.6,3538.5,3.1436]
[1754284289450,4.392,3538.6,3538.5,5.96965623]
[1754284289956,0.1,3538.6,3538.5,5.96965623]
[1754284290120,4.392,3538.6,3538.5,5.96965623]
[1754284291323,4.392,3538.6,3538.5,6.8822432]
[1754284291727,0.1,3538.6,3538.5,6.8822432]
[1754284292065,4.392,3538.6,3538.5,7.2102432]
[1754284293360,4.392,3538.6,3538.5,6.8822432]
[1754284294698,0.1,3538.6,3538.5,6.8822432]
[1754284294858,4.392,3538.6,3538.5,6.8822432]
[1754284295605,4.392,3538.6,3538.5,3.1436]
[1754284295771,4.8644,3538.6,3538.5,0.1436]
[1754284296661,5.3282,3538.6,3538.5,0.1436]
[1754284296862,5.3282,3538.6,3538.5,2.96965623]
[1754284297060,5.3282,3538.6,3538.5,0.1436]
[1754284297257,5.7522,3538.6,3538.5,0.1436]
[1754284298016,5.7522,3538.6,3538.5,2.96965623]
[1754284298158,5.2884,3538.6,3538.5,2.96965623]
[1754284299304,5.2884,3538.6,3538.5,0.1436]
[1754284299522,6.28114,3538.6,3538.5,0.1436]
[1754284299671,6.28114,3538.6,3538.5,0.002]
[1754284301721,5.7522,3538.6,3538.5,0.002]
[1754284302511,0.524,3538.6,3538.5,2.82805623]
[1754284302693,4.815,3538.6,3538.5,2.96965623]
[1754284304282,4.815,3538.6,3538.5,0.1436]
[1754284305020,4.715,3538.6,3538.5,0.1436]
[1754284305182,4.815,3538.6,3538.5,0.1436]
[1754284306123,4.815,3538.6,3538.5,2.96965623]
[1754284307788,5.2874,3538.6,3538.5,2.96965623]
[1754284308219,4.815,3538.6,3538.5,2.96965623]
[1754284308808,0.524,3538.6,3538.5,2.96965623]
[1754284309007,4.815,3538.6,3538.5,2.96965623]
[1754284311049,0.524,3538.6,3538.5,2.96965623]
[1754284311196,0.424,3538.6,3538.5,6.58204223]
[1754284311527,4.715,3538.6,3538.5,6.91004223]
[1754284311893,0.424,3538.6,3538.5,6.91004223]
[1754284312094,4.715,3538.6,3538.5,6.91004223]
[1754284312732,4.715,3538.6,3538.5,6.58204223]
[1754284312930,0.001,3538.9,3538.8,5.82581666]
[1754284313132,4.292,3538.9,3538.8,5.96741666]
[1754284313557,4.7644,3538.9,3538.8,5.96741666]
[1754284314449,4.292,3538.9,3538.8,5.96741666]
[1754284314648,4.292,3538.9,3538.8,7.00680821]
[1754284314953,0.001,3538.9,3538.8,7.00680821]
[1754284315123,4.292,3538.9,3538.8,7.00680821]
[1754284317267,4.291,3538.9,3538.8,7.00680821]
[1754284318767,0.001,3538.9,3538.8,7.00680821]
[1754284318965,0.001,3538.9,3538.8,28.06822644]
[1754284323080,0.001,3538.9,3538.8,7.00680821]
[1754284323278,0.4673,3538.9,3538.8,11.29680821]
[1754284324684,0.4673,3538.9,3538.8,7.00680821]
[1754284324862,0.4673,3538.9,3538.8,11.29680821]
[1754284324863,0.935,3538.9,3538.8,11.29680821]
[1754284325347,0.4673,3538.9,3538.8,11.29680821]
[1754284325742,0.001,3538.9,3538.8,11.29680821]
[1754284326181,0.001,3538.9,3538.8,11.62480821]
[1754284326534,0.001,3538.9,3538.8,7.00680821]
[1754284326735,0.001,3538.9,3538.8,11.29580821]
[1754284328142,0.001,3538.9,3538.8,11.62380821]
[1754284328660,0.001,3538.9,3538.8,11.29580821]
[1754284330576,0.001,3538.9,3538.8,7.00680821]
[1754284330755,0.001,3538.9,3538.8,11.29580821]
[1754284335286,0.001,3538.9,3538.8,32.35722644]
[1754284336484,0.001,3538.9,3538.8,32.68522644]
[1754284336771,0.001,3538.9,3538.8,32.35722644]
[1754284338881,0.001,3538.9,3538.8,32.68522644]
[1754284339279,0.001,3538.9,3538.8,32.35722644]
[1754284341467,0.4673,3538.9,3538.8,32.35722644]
[1754284342051,0.4673,3538.9,3538.8,32.35922644]
[1754284349294,0.001,3538.9,3538.8,32.35922644]
[1754284350927,0.001,3539.1,3539.0,2.82565696]
[1754284350928,1e-08,3539.1,3539.0,2.82565696]
[1754284351194,1e-08,3539.1,3539.0,12.04735773]
[1754284351396,1e-08,3539.1,3539.0,12.18895773]
[1754284352790,0.91250001,3539.1,3539.0,12.18895773]
[1754284355298,0.46740001,3539.1,3539.0,12.18895773]
[1754284358103,0.91250001,3539.1,3539.0,12.18895773]
[1754284359864,0.46740001,3539.1,3539.0,12.18895773]
[1754284360477,0.001,3539.3,3539.2,2.82549728]
[1754284360692,0.001,3539.3,3539.2,31.17391551]
[1754284360693,0.4684,3539.3,3539.2,31.17391551]
[1754284361398,0.4684,3539.3,3539.2,31.31551551]
[1754284362270,0.4684,3539.3,3539.2,10.25409728]
[1754284362465,0.9135,3539.3,3539.2,5.96709728]
[1754284362694,0.9135,3539.3,3539.2,10.9123015]
[1754284372502,0.4684,3539.3,3539.2,10.9123015]
[1754284373309,0.4684,3539.9,3539.6,5.82517798]
[1754284373496,0.001,3539.9,3539.8,2.82501836]
[1754284373700,0.001,3539.9,3539.8,10.11101836]
[1754284373872,0.001,3539.9,3539.8,10.25261836]
[1754284374205,0.4684,3539.9,3539.8,10.25261836]
[1754284374411,0.4684,3539.9,3539.8,12.18631913]
[1754284374810,0.001,3539.9,3539.8,12.18631913]
[1754284375311,0.4684,3539.9,3539.8,12.18631913]
[1754284375611,0.001,3539.9,3539.8,12.18631913]
[1754284377133,0.101,3540.3,3540.2,2.82469916]
[1754284377287,0.001,3540.3,3540.2,2.82469916]
[1754284377495,0.101,3540.3,3540.2,2.96629916]
[1754284377693,1.0135,3540.3,3540.2,2.96629916]
[1754284377894,1.0135,3540.3,3540.2,3.62450338]
[1754284378115,0.9135,3540.3,3540.2,3.62450338]
[1754284378417,1.0135,3540.3,3540.2,3.62450338]
[1754284379519,1.0135,3540.3,3540.2,3.83868908]
[1754284380502,0.4684,3540.3,3540.2,6.83868908]
[1754284381015,0.001,3540.3,3540.2,6.83868908]
[1754284381395,0.001,3540.3,3540.2,7.12052222]
[1754284381596,0.4575,3540.3,3540.2,7.12052222]
[1754284382397,0.001,3540.3,3540.2,7.12052222]
[1754284383387,0.4575,3540.3,3540.2,7.12052222]
[1754284383994,0.9061,3540.3,3540.2,7.12052222]
[1754284385229,0.4575,3540.3,3540.2,7.12052222]
[1754284385524,0.001,3540.3,3540.2,7.12052222]
[1754284385892,0.4575,3540.3,3540.2,7.12052222]
[1754284386298,0.001,3540.3,3540.2,7.12052222]
[1754284386896,1e-08,3540.3,3540.2,7.12052222]
[1754284387101,0.4565,3540.7,3540.6,2.82438004]
[1754284387320,0.4486,3540.8,3540.7,5.82430027]
[1754284387901,0.9051,3540.8,3540.7,5.82430027]
[1754284388306,0.4565,3540.8,3540.7,5.82430027]
[1754284388689,0.9051,3540.8,3540.7,5.82430027]
[1754284388895,0.9051,3540.8,3540.7,7.93250726]
[1754284389195,0.001,3541.0,3540.9,2.82414075]
[1754284389527,0.101,3541.0,3540.9,2.96574075]
[1754284389728,0.4575,3541.0,3540.9,2.96574075]
[1754284390021,0.9061,3541.0,3540.9,3.57812675]
[1754284390429,1.0061,3541.0,3540.9,3.57812675]
[1754284391927,0.9061,3541.0,3540.9,3.57812675]
[1754284392100,1.0061,3541.0,3540.9,3.57812675]
[1754284392927,0.9061,3541.0,3540.9,3.57812675]
[1754284393333,1.0061,3541.0,3540.9,3.57812675]
[1754284396402,0.9061,3541.0,3540.9,3.57812675]
[1754284397698,1.0061,3541.0,3540.9,3.57812675]
[1754284401043,0.4575,3541.0,3540.9,6.57812675]
[1754284402121,0.9061,3541.0,3540.9,6.57812675]
[1754284403942,1.0061,3541.0,3540.9,5.96574075]
[1754284404242,1.0061,3541.0,3540.9,3.1416]
[1754284405941,0.1,3540.7,3540.6,4.283]
[1754284406110,0.1,3540.5,3540.4,4.282]
[1754284406309,1.0051,3540.5,3540.4,3.0]
[1754284406517,1.0051,3540.5,3540.4,0.1416]
[1754284406718,1.0051,3540.5,3540.4,2.9661396]
[1754284407022,1.0051,3540.5,3540.4,0.1416]
[1754284414851,1.0051,3540.5,3540.4,2.9661396]
[1754284415346,1.0051,3540.5,3540.4,0.1416]
[1754284415540,1.0051,3540.5,3540.4,5.9661396]
[1754284418448,1.4291,3540.5,3540.4,5.9661396]
[1754284421658,0.9805,3540.5,3540.4,5.9661396]
[1754284422035,1.4352,3540.5,3540.4,5.9661396]
[1754284425574,1.4352,3540.5,3540.4,2.9661396]
[1754284425743,1.4352,3540.5,3540.4,5.9661396]
[1754284426253,1.4352,3540.5,3540.4,3.1416]
[1754284426457,1.4352,3540.5,3540.4,0.1416]
[1754284426846,1.4757,3540.5,3540.4,0.1416]
[1754284427981,1.4757,3540.5,3540.3,0.1436]
[1754284428138,0.524,3540.5,3540.3,0.1436]
[1754284428343,0.9517,3540.4,3540.3,0.1436]
[1754284430377,1.3757,3540.4,3540.3,0.1436]
[1754284434943,1.3757,3540.4,3540.3,2.96821938]
[1754284435259,0.424,3540.4,3540.3,5.96821938]
[1754284435457,0.424,3540.4,3540.3,8.83646645]
[1754284435677,0.921,3540.4,3540.3,8.83646645]
[1754284436397,1.3757,3540.4,3540.3,8.83646645]
[1754284436550,1.3757,3540.4,3540.3,5.96821938]
[1754284437966,1.3757,3540.4,3540.3,3.1436]
[1754284441291,0.921,3540.4,3540.3,5.96821938]
[1754284442353,0.921,3540.4,3540.3,3.1436]
[1754284442663,1.3892,3540.4,3540.3,5.96821938]
[1754284443063,0.921,3540.4,3540.3,5.96821938]
[1754284444890,0.424,3540.4,3540.3,6.86893643]
[1754284445099,0.424,3540.4,3540.3,7.19693643]
[1754284446073,0.001,3540.5,3540.4,26.88595783]
[1754284446391,0.001,3540.5,3540.4,10.4335396]
[1754284446693,0.001,3540.5,3540.4,10.1055396]
[1754284446850,0.001,3540.5,3540.4,12.97378667]
[1754284448369,0.001,3540.5,3540.4,13.30178667]
[1754284454123,0.9302,3540.5,3540.4,12.97278667]
[1754284454891,0.9302,3540.5,3540.4,8.69278667]
[1754284455079,0.9302,3540.5,3540.4,10.1045396]
[1754284455479,0.9302,3540.5,3540.4,5.8245396]
[1754284455679,1.0302,3540.5,3540.4,10.1045396]
[1754284458234,0.001,3540.5,3540.4,10.1045396]
[1754284458418,0.101,3540.5,3540.4,10.1045396]
[1754284458586,0.101,3540.5,3540.4,12.97278667]
[1754284459212,0.562,3540.5,3540.4,12.97278667]
[1754284460805,0.001,3540.5,3540.4,12.97278667]
[1754284462493,0.001,3540.5,3540.4,13.11438667]
[1754284464536,0.001,3540.5,3540.4,8.83438667]
[1754284464748,1.0302,3540.5,3540.4,0.1416]
[1754284468930,1.0302,3540.5,3540.4,5.9661396]
[1754284469128,1.0302,3540.5,3540.4,3.1416]
[1754284471319,1.0302,3540.5,3540.4,5.9661396]
[1754284480453,1.0302,3540.5,3540.4,3.1416]
[1754284480629,1.0302,3540.5,3540.4,5.9661396]
[1754284480829,1.0302,3540.5,3540.4,3.1416]
[1754284481451,1.0302,3540.5,3540.4,5.9661396]
[1754284484026,0.101,3540.5,3540.4,5.9661396]
[1754284484361,0.5934,3540.5,3540.4,5.9661396]
[1754284484525,1.0531,3540.5,3540.4,5.9661396]
[1754284485559,0.101,3540.5,3540.4,7.29484148]
[1754284486054,0.5934,3540.5,3540.4,7.29484148]
[1754284486257,0.101,3540.5,3540.4,5.9661396]
[1754284488061,1.0531,3540.5,3540.4,10.2461396]
[1754284490061,1.0531,3540.5,3540.4,5.9661396]
[1754284493033,1.0531,3540.5,3540.0,0.002]
[1754284493034,0.1,3540.0,3537.0,1.699]
[1754284493231,4.28,3539.9,3539.8,2.82501836]
[1754284493431,4.28,3539.9,3539.8,5.82501836]
[1754284493432,4.7397,3539.9,3539.8,5.82501836]
[1754284493727,4.7397,3539.9,3539.8,3.1416]
[1754284500452,0.1,3539.0,3538.8,21.52363916]
[1754284500651,0.1,3539.0,3538.9,3.849206]
[1754284501185,0.1,3539.0,3538.9,6.67494281]
[1754284508098,0.1,3539.2,3539.1,5.82557712]
[1754284510397,0.1,3539.2,3539.1,5.96717712]
[1754284511361,0.5456,3539.2,3539.1,5.96717712]
[1754284514200,5.3109,3539.2,3539.1,0.1416]
[1754284514374,6.27274829,3539.2,3539.1,0.1416]
[1754284514697,6.27274829,3539.2,3538.8,0.21615072]
[1754284514995,6.27274829,3539.2,3538.5,0.849345]
[1754284514996,0.1,3538.7,3538.6,0.1416]
[1754284515188,4.38,3538.7,3538.6,0.1416]
[1754284515390,4.8256,3538.7,3538.6,3.1416]
[1754284515974,4.8256,3538.7,3538.6,0.1416]
[1754284518907,4.8256,3538.7,3538.6,0.35691394]
[1754284519101,9.5909,3538.7,3538.6,0.35691394]
[1754284519271,0.1,3538.3,3538.2,5.82624435]
[1754284519595,0.1,3538.3,3538.2,26.88771408]
[1754284519827,0.1,3538.3,3538.2,27.02931408]
[1754284520383,0.5456,3538.3,3538.2,27.02931408]
[1754284520787,0.5456,3538.3,3538.2,3.1416]
[1754284521503,4.8256,3538.3,3538.2,3.35296712]
[1754284522901,4.8256,3538.3,3538.2,0.21136712]
[1754284523082,4.8256,3538.3,3538.1,0.1416]
[1754284523285,0.4456,3538.2,3538.1,0.1416]
[1754284524004,0.9309,3538.2,3538.1,0.35749757]
[1754284524372,0.9309,3538.2,3538.1,0.1416]
[1754284525974,4.28,3538.2,3538.1,3.1416]
[1754284526776,4.7256,3538.2,3538.1,3.1416]
[1754284527203,4.7256,3538.2,3538.1,0.1416]
[1754284528004,0.1,3538.1,3538.0,0.1416]
[1754284528403,0.5456,3538.1,3538.0,0.1416]
[1754284529989,0.5456,3538.1,3538.0,5.96805562]
[1754284530914,4.8256,3538.1,3538.0,5.96805562]
[1754284531715,4.38,3538.1,3538.0,5.96805562]
[1754284531882,8.66,3538.1,3538.0,10.01380369]
[1754284532077,4.38,3538.1,3538.0,9.68580369]
[1754284532302,4.38,3538.1,3538.0,10.01380369]
[1754284533216,4.38,3538.1,3538.0,14.29380369]
[1754284533402,4.38,3538.1,3538.0,13.96580369]
[1754284535308,4.38,3538.1,3538.0,9.68580369]
[1754284540292,4.8372,3538.1,3538.0,6.81755662]
[1754284540486,5.3268,3538.1,3538.0,3.991101]
[1754284541693,9.6068,3538.1,3538.0,3.1416]
[1754284542398,9.6068,3538.1,3538.0,0.1416]
[1754284543013,9.1172,3538.1,3538.0,0.1416]
[1754284543736,9.80331936,3538.1,3537.9,0.21216203]
[1754284543888,0.1,3536.6,3536.5,0.1416]
[1754284544087,4.8372,3536.6,3536.0,21.06141823]
[1754284544319,0.1,3536.2,3536.1,2.82789723]
[1754284544521,0.1,3536.2,3536.1,5.82789723]
[1754284544925,0.1,3536.2,3536.1,2.82789723]
[1754284545114,0.1,3536.2,3536.1,5.82789723]
[1754284545494,0.1,3536.2,3536.1,5.96949723]
[1754284545689,4.409,3536.3,3536.2,2.82789434]
[1754284545904,0.1,3536.3,3536.2,4.59761805]
[1754284546096,0.1,3536.4,3536.3,5.82773716]
[1754284546427,0.1,3536.4,3536.3,26.88915539]
[1754284546628,0.1,3536.4,3536.3,27.03075539]
[1754284546826,0.1,3536.4,3536.3,27.2435382]
[1754284547226,0.1,3536.4,3536.3,3.35438281]
[1754284547442,4.315,3536.6,3536.5,2.82765446]
[1754284547729,0.4572,3536.7,3536.6,5.8275745]
[1754284548038,4.8722,3536.7,3536.6,5.8275745]
[1754284548330,0.5572,3536.7,3536.6,5.8275745]
[1754284548828,4.8722,3536.7,3536.6,5.8275745]
[1754284549398,0.5572,3536.7,3536.6,5.8275745]
[1754284549601,4.8722,3536.7,3536.6,5.8275745]
[1754284550303,4.7722,3536.7,3536.6,5.8275745]
[1754284550522,4.8722,3536.7,3536.6,5.8275745]
[1754284551026,0.5572,3536.7,3536.6,5.8275745]
[1754284551201,4.8722,3536.7,3536.6,5.8275745]
[1754284551634,9.1522,3536.7,3536.6,5.8275745]
[1754284558944,9.1532,3536.7,3536.6,5.8275745]
[1754284565463,9.1532,3536.7,3536.6,3.0]
[1754284566253,9.1532,3536.7,3536.6,5.8275745]
[1754284571268,4.8382,3536.7,3536.6,5.8275745]
[1754284571472,8.685,3536.7,3536.6,5.8275745]
[1754284572473,9.1384,3536.7,3536.6,5.8275745]
[1754284582327,4.381,3536.7,3536.6,5.8275745]
[1754284582488,8.68,3536.7,3536.6,5.8275745]
[1754284584404,4.381,3536.7,3536.6,5.8275745]
[1754284584730,8.679,3536.7,3536.6,5.8275745]
[1754284585623,9.1324,3536.7,3536.6,5.8275745]
[1754284586413,4.8344,3536.7,3536.6,5.8275745]
[1754284590403,4.8344,3536.7,3536.6,3.0]
[1754284590603,9.1304,3536.7,3536.6,3.0]
[1754284591560,11.2328,3536.7,3536.6,3.0]
[1754284591730,10.6828,3536.7,3536.6,3.0]
[1754284591916,4.8344,3536.7,3536.6,5.8275745]
[1754284592121,9.1304,3536.7,3536.6,3.0]
[1754284592322,9.1304,3536.7,3536.6,5.8275745]
[1754284593867,9.1304,3536.7,3536.6,3.0]
[1754284594741,9.1304,3536.7,3536.6,5.8275745]
[1754284596467,8.677,3536.7,3536.6,5.8275745]
[1754284597179,4.381,3536.7,3536.6,5.8275745]
[1754284597370,9.1404,3536.7,3536.6,5.8275745]
[1754284597680,0.1,3536.0,3535.9,2.82813427]
[1754284597880,0.1,3536.3,3536.2,5.82789434]
[1754284598189,4.405,3536.3,3536.2,5.82789434]
[1754284599648,4.405,3536.3,3536.2,6.03718273]
[1754284599860,4.405,3536.3,3536.2,8.9054298]
[1754284601554,0.1,3536.3,3536.2,8.9054298]
[1754284604089,0.1,3536.5,3536.4,2.82773441]
[1754284604258,0.1,3536.5,3536.4,5.82773441]
[1754284604895,4.38,3536.5,3536.4,5.82773441]
[1754284607692,4.38,3536.5,3536.4,5.96933441]
[1754284608505,4.38,3536.5,3536.4,7.34476988]
[1754284610074,4.8444,3536.5,3536.4,7.34476988]
[1754284610275,4.8444,3536.5,3536.4,5.96933441]
[1754284612472,9.7696,3536.5,3536.4,5.96933441]
[1754284613106,9.1444,3536.5,3536.4,5.96933441]
[1754284615297,9.1424,3536.5,3536.4,5.96933441]
[1754284620322,0.101,3536.7,3536.6,2.8275745]
[1754284620533,0.001,3536.7,3536.6,13.02109731]
[1754284620715,0.001,3536.7,3536.6,12.99282157]
[1754284620910,0.001,3536.7,3536.6,13.13442157]
[1754284625291,0.001,3536.7,3536.6,10.13442157]
[1754284625620,4.281,3536.7,3536.6,13.13442157]
[1754284628229,4.7107,3536.7,3536.6,10.2641745]
[1754284628597,5.3385,3536.7,3536.6,5.9691745]
[1754284628800,5.3385,3536.7,3536.6,10.2631745]
[1754284630248,4.7107,3536.7,3536.6,10.2631745]
[1754284630735,4.7107,3536.7,3536.6,5.9691745]
[1754284632122,4.281,3536.7,3536.6,5.9691745]
[1754284632436,4.7107,3536.7,3536.6,5.9691745]
[1754284635811,5.3385,3536.7,3536.6,5.9691745]
[1754284636658,4.7107,3536.7,3536.6,5.9691745]
[1754284637347,4.281,3536.7,3536.6,5.8275745]
[1754284637652,4.281,3536.7,3536.6,5.9691745]
[1754284637959,4.281,3536.7,3536.6,8.83742157]
[1754284642627,4.7107,3536.7,3536.6,8.83742157]
[1754284643656,4.281,3536.7,3536.6,8.83742157]
[1754284644764,4.7107,3536.7,3536.6,8.83742157]
[1754284647058,4.281,3536.7,3536.6,8.83742157]
[1754284647257,4.7107,3536.7,3536.6,13.12642157]
[1754284649233,4.7107,3536.7,3536.6,10.2581745]
[1754284649967,1.0093,3536.7,3536.6,5.9691745]
[1754284650953,1.0093,3536.7,3536.2,4.49828839]
[1754284650954,5.2983,3536.7,3536.2,4.49828839]
[1754284651132,0.4642,3536.6,3536.5,3.0]
[1754284651352,1.0428,3536.6,3536.5,2.82765446]
[1754284651540,5.4388,3536.6,3536.5,3.0]
[1754284653743,5.4388,3536.6,3536.5,5.82765446]
[1754284653954,5.4388,3536.6,3536.5,3.0]
[1754284654147,5.4388,3536.6,3536.5,2.82765446]
[1754284654376,5.4388,3536.6,3536.2,25.35041823]
[1754284654377,0.1,3535.5,3535.4,2.82853425]
[1754284654577,5.89694,3536.6,3535.9,2.82813427]
[1754284654578,0.1,3536.0,3535.9,2.82813427]
[1754284654744,0.1,3536.0,3535.9,23.8895525]
[1754284654946,0.1,3536.0,3535.9,27.09958935]
[1754284655144,0.1,3536.0,3535.9,29.96783642]
[1754284655464,0.4642,3536.6,3536.5,3.0]
[1754284655465,4.317,3536.6,3536.5,3.0]
[1754284655657,4.417,3536.6,3536.5,26.88907269]
[1754284655853,0.1,3536.6,3536.5,26.88907269]
[1754284656175,0.101,3536.7,3536.6,5.8275745]
[1754284656481,0.5652,3536.7,3536.6,5.8275745]
[1754284660276,1.1438,3536.7,3536.6,5.8275745]
[1754284664362,1.1438,3536.7,3536.6,5.9691745]
[1754284667503,0.6796,3536.7,3536.6,5.9691745]
[1754284669178,0.101,3536.7,3536.6,5.9691745]
[1754284669801,4.381,3536.7,3536.6,5.9691745]
[1754284670503,4.9596,3536.7,3536.6,5.9691745]
[1754284671101,5.4238,3536.7,3536.6,5.9691745]
[1754284671906,5.4238,3536.7,3536.6,3.1416]
[1754284671907,5.45238287,3536.7,3536.6,3.1416]
[1754284672067,0.1,3536.0,3535.9,6.03817112]
[1754284672267,4.311,3536.2,3536.1,2.82797432]
[1754284672470,0.1,3536.1,3536.0,2.82802768]
[1754284672980,1.1428,3536.1,3536.0,2.96962768]
[1754284673367,5.4228,3536.1,3536.0,0.1416]
[1754284673704,6.39618,3536.1,3536.0,3.1416]
[1754284674110,5.4228,3536.1,3536.0,3.1416]
[1754284674976,5.4228,3536.1,3536.0,0.1416]
[1754284675374,5.4228,3536.1,3536.0,3.1416]
[1754284675574,5.4228,3536.1,3536.0,2.96965429]
[1754284676218,5.4228,3536.1,3536.0,3.1416]
[1754284676602,5.4228,3536.1,3536.0,5.96965429]
[1754284677213,5.4228,3536.1,3536.0,3.1416]
[1754284677419,6.39618,3536.1,3535.9,0.2074852]
[1754284677716,5.3518,3536.0,3535.6,2.82834551]
[1754284677915,6.422318,3536.0,3535.6,2.82834551]
[1754284678218,0.1,3535.7,3535.6,2.82834551]
[1754284678391,4.411,3535.7,3535.6,2.82834551]
[1754284678581,4.9896,3535.7,3535.6,2.82834551]
[1754284679518,4.411,3535.8,3535.7,5.82829425]
[1754284679680,4.41,3535.8,3535.7,8.69654132]
[1754284679881,4.41,3535.8,3535.7,9.50907314]
[1754284680921,4.41,3535.8,3535.7,6.03972607]
[1754284682098,0.1,3535.8,3535.7,6.03972607]
[1754284684097,0.1,3535.8,3535.7,6.64082607]
[1754284685755,0.1,3535.8,3535.7,7.08582607]
[1754284686463,0.1,3535.8,3535.7,6.64082607]
[1754284686822,0.1,3535.8,3535.7,10.95082607]
[1754284687061,0.1,3535.8,3535.7,13.81907314]
[1754284687446,0.1,3535.8,3535.7,13.96067314]
[1754284688043,4.28,3536.9,3536.6,2.8275745]
[1754284688232,4.9067,3536.7,3536.6,5.8275745]
[1754284688435,5.3566,3536.7,3536.6,5.8275745]
[1754284688632,1.0476,3536.7,3536.6,5.8275745]
[1754284688841,0.001,3536.7,3536.6,5.8275745]
[1754284689039,4.31,3536.7,3536.6,5.8275745]
[1754284689247,0.001,3536.7,3536.6,5.8275745]
[1754284689569,0.001,3536.7,3536.6,7.80410997]
[1754284690262,0.001,3536.7,3536.6,12.11310997]
[1754284690839,0.001,3536.7,3536.6,11.51200997]
[1754284692443,0.001,3536.7,3536.6,12.11310997]
[1754284695186,0.001,3536.7,3536.6,11.51200997]
[1754284695596,0.5977,3536.7,3536.6,11.51200997]
[1754284696315,1.0476,3536.7,3536.6,11.51200997]
[1754284696797,1.0476,3536.7,3536.6,5.8275745]
[1754284696988,5.3276,3536.7,3536.6,5.8275745]
[1754284701186,5.3276,3536.7,3536.6,5.7775745]
[1754284706189,9.6306,3536.7,3536.6,5.7775745]
[1754284707240,9.6306,3536.7,3536.6,3.0]
[1754284707396,10.59366,3536.7,3536.6,3.0]
[1754284707964,10.59366,3536.7,3536.6,2.988]
[1754284708658,10.59366,3536.7,3536.6,5.8155745]
[1754284708867,9.6306,3536.7,3536.6,5.8155745]
[1754284709268,9.6306,3536.7,3536.6,2.988]
[1754284711962,9.7722,3536.7,3536.6,2.988]
[1754284712374,9.7722,3536.7,3536.3,3.0]
[1754284712550,1.99242,3536.6,3536.3,3.0]
[1754284712874,5.3152,3536.5,3536.3,3.0]
[1754284713042,5.3152,3536.5,3536.2,0.1416]
[1754284713242,1.0152,3536.4,3536.2,2.96949303]